[Event "Czech Championship 2024"]
[Site "Ostrava"]
[Date "2024.05.02"]
[Round "6.4"]
[White "Neuman, Petr"]
[Black "Finek, Vaclav"]
[Result "0-1"]
[ECO "C44"]
[WhiteElo "2429"]
[BlackElo "2431"]
[Annotator "TA"]
[PlyCount "62"]
[EventDate "2024.04.25"]
[EventType "tourn"]
[EventCountry "CZE"]
[SourceTitle "playchess.com"]
[Source "ChessBase"]
[SourceQuality "1"]
[TimeControl "40/5400+30:1800+30"]

{[%evp 16,62,-42,-22,0,-89,-70,-67,-66,-76,-66,-80,-45,-66,-72,-85,-54,-79,-33,-50,-13,-39,-16,-19,-11,-54,-23,-127,-127,-123,-139,-137,-116,-110,-108,-100,-103,-133,-153,-300,-316,-314,-312,-356,-333,-367,-396,-385,-381]} 1. e4 {[%emt 0:00:07]} e5 {[%emt 0:00:04]} 2. Nf3 {[%emt 0:00:12]} Nc6 {[%emt 0:00:05]} 3. c3 {[%emt 0:00:34]} d5 {[%emt 0:00:07]} 4. d3 {[%emt 0:00:06]} Nf6 {[%emt 0:00:05]} 5. Nbd2 {[%emt 0:00:05]} a5 {[%emt 0:00:05]} 6. Be2 {[%emt 0:00:14]} Bc5 {[%emt 0:00:08]} 7. O-O {[%emt 0:00:11]} O-O {[%emt 0:00:10]} 8. b3 {[%emt 0:00:15]} Re8 {[%emt 0:00:26]} 9. a3 {[%emt 0:00:33]} d4 {[%emt 0:00:07]} 10. c4 {[%emt 0:00:20]} (10. cxd4 $11 {remains equal.} Bxd4 (10... Nxd4 11. Nxd4 Bxd4 12. Rb1 $11) 11. Nxd4 Nxd4 12. Bb2) 10... Nd7 {[%emt 0:07:14]} 11. Ne1 {[%emt 0:06:32]} Bd6 {[%emt 0:04:10] Black is slightly better.} 12. Bg4 {[%emt 0:17:22]} Nc5 {[%emt 0:01:32]} 13. Rb1 {[%emt 0:02:02]} Ne6 {[%emt 0:07:33] Black is much more active.} 14. g3 {[%emt 0:03:11] White is weak on the dark squares} Qe7 {[%emt 0:02:27]} 15. Ra1 {[%emt 0:00:30]} Rf8 {[%emt 0:03:12]} 16. Ng2 {[%emt 0:02:27]} g6 {[%emt 0:04:17]} (16... Bd7 $17) 17. Nf3 {[%emt 0:14:11]} Rb8 {[%emt 0:19:27]} 18. Nfh4 {[%emt 0:04:04]} Ng7 {[%emt 0:06:39]} 19. Bxc8 {[%emt 0:03:24]} (19. Bh6 {keeps more tension.} Bxg4 20. Qxg4 f6 21. f4) 19... Rbxc8 {[%emt 0:00:05]} 20. Re1 {[%emt 0:05:28]} Ne6 {[%emt 0:05:32]} 21. f4 {[%emt 0:10:12]} (21. Rf1 $11 {keeps the balance.}) 21... exf4 $17 {[%emt 0:05:31]} 22. e5 {[%emt 0:19:43]} Bxe5 {[%emt 0:02:12]} ({Weaker is} 22... Nxe5 23. gxf4 Nc6 24. f5 $14) 23. Nf3 {[%emt 0:02:00]} Bd6 {[%emt 0:09:08]} 24. Nxf4 {[%emt 0:01:58]} Bxf4 {[%emt 0:00:17]} 25. Bxf4 {[%emt 0:00:07]} Qf6 {[%emt 0:01:37]} 26. Qd2 {[%emt 0:00:53]} Rfe8 {[%emt 0:01:55][%cal Bf8e8,Be8e3,Be3f3,Bf3f4][%mdl 32]} 27. b4 {[%emt 0:03:28] Inhibits Nc5.} (27. Rad1 $17 {was worth a try.}) 27... axb4 $19 {[%emt 0:00:36]} 28. axb4 {[%emt 0:00:01]} Nxf4 {[%emt 0:00:13]} 29. gxf4 {[%emt 0:00:16] [#]} Re3 $1 {[%emt 0:00:23][%mdl 512]} 30. b5 {[%emt 0:01:21]} (30. Ne5 Nxe5) 30... Rxf3 {[%emt 0:02:15]} 31. bxc6 {[%emt 0:00:05]} Rxf4 {[%emt 0:05:29] Weighted Error Value: White=0.34/Black=0.15 (very precise) .  Mistake:       	White=3     	Black=1      Inaccurate:     	White=2     	Black=4      OK:         	White=6     	Black=6      Best:        	---       	Black=2      Brilliant:      	---       	Black=1} 0-1

[Event "Czech Championship 2024"]
[Site "Ostrava"]
[Date "2024.05.02"]
[Round "6.5"]
[White "Nemec, Jachym"]
[Black "Stalmach, Richard"]
[Result "1-0"]
[ECO "E20"]
[WhiteElo "2416"]
[BlackElo "2446"]
[Annotator "TA"]
[PlyCount "85"]
[EventDate "2024.04.25"]
[EventType "tourn"]
[EventCountry "CZE"]
[SourceTitle "playchess.com"]
[Source "ChessBase"]
[SourceQuality "1"]
[TimeControl "40/5400+30:1800+30"]

{[%evp 13,85,-1,0,0,1,7,45,25,36,35,35,20,38,0,0,7,0,-26,-22,-29,-10,-13,-20,-22,0,0,0,-7,79,-1,-10,-2,-5,-6,-21,-11,-4,-6,0,-7,-10,-14,0,-84,-79,-82,-48,-218,-218,-222,-77,-75,0,0,0,0,29975,29976,29990,29991,29991,29992,29992,12818,29993,7121,7121,5206,29993,29993,29993,29994,29994,29991]} 1. d4 {[%emt 0:00:03]} Nf6 {[%emt 0:00:11]} 2. c4 {[%emt 0:00:13]} e6 {[%emt 0:00:10]} 3. Nf3 {[%emt 0:00:19]} d5 {[%emt 0:00:11]} 4. g3 {[%emt 0:00:14]} Bb4+ {[%emt 0:00:33]} 5. Nc3 {[%emt 0:00:16]} dxc4 {[%emt 0:02:08]} 6. Bg2 {[%emt 0:00:32]} O-O {[%emt 0:01:28]} 7. O-O {[%emt 0:00:11]} Nc6 {[%emt 0:01:25]} 8. Qa4 {[%emt 0:00:45]} Bd7 {[%emt 0:18:35]} 9. Bg5 {[%emt 0:01:07]} a5 {[%emt 0:09:15][%cal Oc6d4]} (9... Rb8 $5) 10. Bxf6 {[%emt 0:10:43] White is slightly better.} Qxf6 {[%emt 0:05:50]} 11. a3 {[%emt 0:07:22]} Bd6 {[%emt 0:13:05]} 12. Qxc4 {[%emt 0:02:25]} e5 {[%emt 0:00:10][%cal Re5d4]} 13. d5 {[%emt 0:07:19]} Nb8 {[%emt 0:05:04]} 14. Ne4 {[%emt 0:12:56]} Qe7 {[%emt 0:00:25]} 15. Rac1 {[%emt 0:05:03]} Na6 {[%emt 0:01:01]} 16. Rfd1 {[%emt 0:03:30]} f5 {[%emt 0:03:20]} 17. Nxd6 {[%emt 0:09:12]} cxd6 {[%emt 0:00:16]} 18. b4 {[%emt 0:00:51]} Rfc8 {[%emt 0:00:29]} 19. Qb3 {[%emt 0:00:38]} axb4 {[%emt 0:00:09]} 20. axb4 {[%emt 0:00:31]} Qd8 {[%emt 0:05:14]} (20... Nc7 $11 {keeps the balance.} 21. Re1 Qf6) 21. Nd2 {[%emt 0:02:27] White is more active.} ({White should try} 21. Nxe5 $1 $16 dxe5 22. d6+ Kh8 23. Bxb7 Rxc1 24. Rxc1) 21... Rxc1 {[%emt 0:00:32]} 22. Rxc1 {[%emt 0:00:07]} Rc8 {[%emt 0:00:03]} 23. Rc3 {[%emt 0:10:55]} Rxc3 {[%emt 0:03:15]} 24. Qxc3 {[%emt 0:00:10]} Qb6 {[%emt 0:00:09][%cal Og8f8]} (24... Kf8 {simplifies} 25. Bh3 Qc7 26. Qxc7 Nxc7 27. Nc4 Nxd5 28. Nxd6 Nxb4 29. Nxb7 Ke7) 25. e4 $1 {[%emt 0:07:15]} Nxb4 {[%emt 0:06:10]} (25... Qxb4 {simplifies} 26. Qxb4 Nxb4 27. Nc4 fxe4 28. Nxd6 Nxd5 29. Nxb7 Nf6) 26. exf5 {[%emt 0:03:06]} Bxf5 {[%emt 0:01:04]} 27. Be4 {[%emt 0:00:10] Dodges Nd3} Bh3 {[%emt 0:01:48]} 28. Nf3 {[%emt 0:01:07]} (28. Qf3 $11 g6 29. g4 (29. Qf6 Qc7 $15)) 28... h6 $17 {[%emt 0:03:43]} 29. Nd2 {[%emt 0:07:18]} Na6 {[%emt 0:05:08]} 30. g4 $2 {[%emt 0:02:21]} Bxg4 $19 {[%emt 0:00:58]} 31. Qg3 {[%emt 0:00:05] [#]} h5 {[%emt 0:02:02]} (31... Bd7 $1 $19 {Hoping for ...Qd4.} 32. Qh4 Kf8 (32... Nc5 33. Bg6 $19)) 32. Qh4 $17 {[%emt 0:01:17] [#] aiming for h3.} Nc5 {[%emt 0:00:54]} (32... Qc7 $1 $17 {Threatens to win with ...Nc5.} 33. h3 Be2) 33. Bg6 $36 {[%emt 0:00:40][%mdl 2048] White fights for an advantage.} Qc7 {[%emt 0:05:39] Wards off Qe7} 34. f3 $1 {[%emt 0:00:25]} Bc8 {[%emt 0:04:07][%mdl 8192]} (34... Nb3 $11 35. Nxb3 Bxf3) 35. Qxh5 {[%emt 0:00:50]} Qa5 {[%emt 0:01:31]} 36. Qh7+ {[%emt 0:03:14]} Kf8 {[%emt 0:00:00]} 37. Qh8+ {[%emt 0:03:23]} Ke7 38. Qe8+ {[%emt 0:00:00]} (38. Qxg7+ Kd8 39. Qf8+ Kc7 40. Qe7+ Bd7 $11) 38... Kf6 {[%emt 0:00:04]} 39. Qf7+ {[%emt 0:00:00]} (39. h4 $142 e4 40. f4 (40. Nxe4+ Nxe4 41. Bxe4 Qe1+ 42. Kg2 Qe2+ 43. Kg3 Qe1+ 44. Kg2 Qe2+ 45. Kg3 Qe1+ 46. Kg2 $11) (40. Qf7+ Ke5 $18) 40... Qc7 41. Bh5 (41. Nxe4+ Nxe4 42. Bxe4 Qc1+ 43. Kf2 Qxf4+ 44. Ke2 Qh2+ 45. Kd3 Qg3+ 46. Kd4 Qf2+ 47. Kc4 Qe3 $17) 41... Be6 42. Qg6+ (42. dxe6 Nxe6 43. Qg6+ Ke7 44. Qf7+ Kd8 45. Qe8#) 42... Ke7 43. Qxg7+ (43. dxe6 d5 $18) 43... Kd8 44. Qf8+ Kd7 45. Qe8#) 39... Kg5 $18 {[%emt 0:00:01] [#]} 40. Qxg7 $1 {[%emt 0:00:00] Intending Bb1+ and mate.} Qd8 {[%emt 0:03:50]} (40... Qxd2 41. Be8+) 41. Kf2 {[%emt 0:11:09] White mates.} Kf4 {[%emt 0:00:07]} 42. Qf7+ {[%emt 0:00:13]} Kg5 {[%emt 0:00:01] [#]} 43. h4+ $1 {[%emt 0:00:32][%mdl 512] Weighted Error Value: White=0.20 (precise) /Black=0.44.  Loses game:     	White=1     	Black=1      Mistake:       	White=2     	Black=3      Inaccurate:     	White=2     	Black=2      OK:         	White=9     	Black=6      Best:        	White=3     	Black=2      Strong:       	White=2     	---} 1-0

[Event "Czech Championship 2024"]
[Site "Ostrava"]
[Date "2024.05.03"]
[Round "7.1"]
[White "Stalmach, Richard"]
[Black "Hrbek, Stepan"]
[Result "1-0"]
[ECO "D27"]
[WhiteElo "2446"]
[BlackElo "2407"]
[Annotator "TA"]
[PlyCount "107"]
[EventDate "2024.04.25"]
[EventType "tourn"]
[EventCountry "CZE"]
[SourceTitle "playchess.com"]
[Source "ChessBase"]
[SourceQuality "1"]
[TimeControl "40/5400+30:1800+30"]

{[%evp 15,107,21,27,7,32,41,33,47,53,40,67,54,47,46,55,54,55,44,79,76,125,114,128,141,137,140,128,139,152,130,131,133,135,128,135,126,138,137,151,152,145,134,152,134,149,137,135,141,144,139,145,143,143,148,160,151,200,200,206,197,270,264,310,331,344,326,329,330,309,329,407,366,393,382,383,395,500,507,1000,914,2464,1151,2072,1875,29970,4133,2531,1335,29974,29975,29975,29976,29976,29977]} 1. d4 {[%emt 0:00:04]} d5 {[%emt 0:00:29]} 2. c4 {[%emt 0:00:55]} dxc4 {[%emt 0:00:50]} 3. Nf3 {[%emt 0:02:24]} Nf6 {[%emt 0:00:14]} 4. e3 {[%emt 0:00:04]} e6 {[%emt 0:00:14]} 5. Bxc4 {[%emt 0:00:13]} c5 {[%emt 0:00:25]} 6. O-O {[%emt 0:01:06]} a6 {[%emt 0:00:05]} 7. dxc5 {[%emt 0:08:55]} Qxd1 {[%emt 0:00:11]} 8. Rxd1 {[%emt 0:00:04]} Bxc5 {[%emt 0:00:06]} 9. Nfd2 {[%emt 0:00:21]} b6 {[%emt 0:18:32]} 10. Nc3 {[%emt 0:01:45]} Be7 {[%emt 0:01:53]} 11. Be2 {[%emt 0:03:08] White is slightly better.} Bb7 {[%emt 0:02:58]} 12. Nc4 {[%emt 0:02:04]} Nbd7 {[%emt 0:00:37]} 13. Nd6+ {[%emt 0:00:47]} Bxd6 {[%emt 0:00:08]} 14. Rxd6 {[%emt 0:00:03]} Rc8 {[%emt 0:20:12] Prevents b3.} 15. f3 {[%emt 0:00:27]} Ke7 {[%emt 0:05:38]} 16. Rd1 {[%emt 0:02:00]} b5 {[%emt 0:03:52]} 17. e4 {[%emt 0:01:20] White leaves nothing to chance now.} b4 {[%emt 0:01:29]} (17... Rhd8 $142) 18. Na4 {[%emt 0:03:02][%cal Bc3a4,Ba4b2,Bb2d3,Bd3e5][%mdl 32] aiming for Bd2.} Bc6 {[%emt 0:14:54]} 19. b3 {[%emt 0:00:14]} Bb5 {[%emt 0:01:09]} 20. Bxb5 {[%emt 0:05:00]} axb5 {[%emt 0:00:02]} 21. Nb2 {[%emt 0:00:07]} Nc5 {[%emt 0:00:30]} 22. Bd2 {[%emt 0:03:19]} Na6 {[%emt 0:00:05]} 23. Nd3 {[%emt 0:02:52]} Rhd8 {[%emt 0:00:47]} 24. Be1 {[%emt 0:08:23]} (24. Bxb4+ $6 Nxb4 25. Nxb4 Rxd1+ 26. Rxd1 Nd7 $11) 24... Rd4 {[%emt 0:01:34]} 25. Ne5 {[%emt 0:02:10]} Rxd1 {[%emt 0:01:07]} 26. Rxd1 {[%emt 0:00:05]} h6 {[%emt 0:08:34]} 27. Nd3 {[%emt 0:00:28] White is more active.} Nd7 {[%emt 0:00:56]} 28. Nxb4 {[%emt 0:00:45]} ({Much worse is} 28. Bxb4+ $6 Nxb4 29. Nxb4 Nc5 $11) 28... Ndb8 {[%emt 0:00:24]} 29. Kf2 {[%emt 0:02:34]} Ke8 {[%emt 0:01:02]} 30. Ke3 {[%emt 0:01:38]} Nxb4 {[%emt 0:01:38]} 31. Bxb4 $16 {[%emt 0:00:06][%mdl 4096] Endgame. KRB-KRN} Na6 {[%emt 0:00:30]} 32. Bd6 {[%emt 0:04:43]} Rc2 {[%emt 0:01:55] [#]} 33. Rd2 $1 {[%emt 0:00:09]} Rc3+ {[%emt 0:01:03]} 34. Ke2 {[%emt 0:01:47] Be5 would now be deadly.} Rc1 {[%emt 0:01:40]} 35. g4 {[%emt 0:04:11]} Rc6 {[%emt 0:04:09]} (35... g5 $16 36. a4 b4) 36. h4 $18 {[%emt 0:01:05][%cal Bh2h4,Bh4h5][%mdl 32]} Rc8 {[%emt 0:01:19]} 37. h5 {[%emt 0:02:50]} Nb8 {[%emt 0:00:05]} (37... Rc6 $142 38. Kf2 b4) 38. Be5 {[%emt 0:03:36]} f6 {[%emt 0:00:16]} 39. Bxb8 {[%emt 0:01:11]} Rxb8 {[%emt 0:00:05] KR-KR} 40. Rd6 {[%emt 0:00:03]} Ke7 {[%emt 0:01:27]} 41. Ra6 {[%emt 0:30:20]} Rc8 {[%emt 0:31:42]} 42. Kd3 {[%emt 0:03:54]} b4 {[%emt 0:00:00]} 43. Ra4 {[%emt 0:00:00]} Rc3+ {[%emt 0:00:00]} 44. Kd4 {[%emt 0:00:00]} Rc2 {[%emt 0:00:00]} 45. Rxb4 {[%emt 0:00:00]} Rxa2 {[%emt 0:00:00]} 46. Rb7+ {[%emt 0:00:00]} Kf8 {[%emt 0:00:00]} (46... Kd6 $142 47. Rxg7 Rf2) 47. b4 {[%emt 0:00:00][%cal Bb3b4,Bb4b5,Bb5b6][%mdl 32]} e5+ {[%emt 0:00:00]} 48. Kd5 {[%emt 0:00:00]} Rf2 {[%emt 0:00:00]} 49. b5 {[%emt 0:00:00]} Rxf3 {[%emt 0:00:00]} 50. Ra7 {[%emt 0:00:00]} (50. b6 $142 Rb3 51. Kc5 Rc3+ 52. Kb4 (52. Kd6 Rb3 $18) 52... Re3 53. Rc7 (53. Kc5 Rxe4 54. Ra7 Re1 $18) 53... Re2 54. Kc5 (54. b7 Rb2+ 55. Kc5 f5 56. gxf5 Kg8 57. Rc8+ Kf7 58. b8=Q Rxb8 59. Rxb8 Ke7) 54... Rb2 55. b7) 50... Rb3 {[%emt 0:00:00]} 51. Kc5 {[%emt 0:00:00] [#] White wants to mate with b6.} Rc3+ {[%emt 0:00:00]} 52. Kb4 {[%emt 0:00:00] White mates.} Rc1 {[%emt 0:00:00]} 53. b6 {[%emt 0:00:00]} Rb1+ {[%emt 0:00:00]} 54. Kc5 {[%emt 0:00:00] Weighted Error Value: White=0.04 (flawless) /Black=0.47.  Mistake:       	---       	Black=4      Inaccurate:     	---       	Black=2      OK:         	White=22    	Black=14     Best:        	White=2     	Black=1} 1-0

[Event "Czech Championship 2024"]
[Site "Ostrava"]
[Date "2024.05.03"]
[Round "7.2"]
[White "Finek, Vaclav"]
[Black "Nemec, Jachym"]
[Result "1-0"]
[ECO "E11"]
[WhiteElo "2431"]
[BlackElo "2416"]
[Annotator "TA"]
[PlyCount "157"]
[EventDate "2024.04.25"]
[EventType "tourn"]
[EventCountry "CZE"]
[SourceTitle "playchess.com"]
[Source "ChessBase"]
[SourceQuality "1"]
[TimeControl "40/5400+30:1800+30"]

{[%evp 14,157,6,0,13,4,14,0,0,12,10,0,33,22,45,0,30,28,25,26,44,33,37,18,18,17,33,24,37,38,30,27,25,26,44,21,36,29,50,29,24,36,26,22,25,16,20,6,13,20,56,56,54,43,50,25,36,25,126,114,122,54,59,55,58,48,114,120,108,126,106,55,55,55,55,55,55,55,70,62,70,70,70,60,70,70,70,31,70,7,45,15,70,8,53,0,0,0,0,0,24,0,0,0,0,0,8,0,91,0,0,0,0,0,0,0,25,0,0,0,25,23,446,122,454,450,364,285,29971,29972,29969,12608,29982,29983,29983,29984,29993,29994,29994,2972,29987,29971,29995,29996,29996,29997]} 1. d4 {[%emt 0:00:01]} d5 {[%emt 0:00:16]} 2. c4 {[%emt 0:00:06]} e6 {[%emt 0:00:06]} 3. Nf3 {[%emt 0:00:05]} Nf6 {[%emt 0:00:20]} 4. g3 {[%emt 0:00:05]} Bb4+ {[%emt 0:00:40]} 5. Bd2 {[%emt 0:00:05]} Be7 {[%emt 0:00:26]} 6. Bg2 {[%emt 0:00:06]} O-O {[%emt 0:00:12]} 7. O-O {[%emt 0:00:07]} c6 {[%emt 0:00:04]} 8. Qc2 {[%emt 0:00:05]} a5 {[%emt 0:00:49]} 9. Rc1 {[%emt 0:06:32]} Nbd7 {[%emt 0:02:38]} 10. a4 {[%emt 0:00:43]} Ne4 {[%emt 0:06:02] The position is equal.} 11. Ne1 {[%emt 0:03:18]} f5 {[%emt 0:03:34]} 12. Nd3 {[%emt 0:00:49]} Bd6 {[%emt 0:02:50]} 13. Bf4 {[%emt 0:04:48]} Be7 {[%emt 0:07:52]} 14. Bd2 {[%emt 0:13:13]} Bd6 {[%emt 0:13:38]} 15. Be1 {[%emt 0:10:00]} Qe7 {[%emt 0:02:16]} 16. e3 {[%emt 0:01:46]} b6 {[%emt 0:05:31]} 17. cxd5 {[%emt 0:01:46]} cxd5 {[%emt 0:00:25]} 18. Na3 {[%emt 0:02:20]} Bxa3 {[%emt 0:14:31]} 19. Rxa3 {[%emt 0:00:10]} Ba6 {[%emt 0:00:04]} 20. Qd1 {[%emt 0:03:24]} Rac8 {[%emt 0:00:41]} 21. Raa1 {[%emt 0:02:20]} Rfd8 {[%emt 0:06:13]} 22. b4 {[%emt 0:12:47]} axb4 {[%emt 0:04:14]} 23. Nxb4 {[%emt 0:00:21][%cal Bd3b4,Bb4c2,Bc2a3][%mdl 32]} Bc4 {[%emt 0:01:23]} 24. Rab1 {[%emt 0:02:21]} Qd6 {[%emt 0:09:03]} 25. Nc2 {[%emt 0:06:28]} Nb8 {[%emt 0:05:37]} 26. Bb4 {[%emt 0:02:16]} Qd7 {[%emt 0:00:05]} 27. Na3 {[%emt 0:01:50]} Ba6 $1 {[%emt 0:00:30]} 28. Be1 {[%emt 0:09:57]} Rxc1 {[%emt 0:02:08]} 29. Rxc1 {[%emt 0:00:04]} Rc8 {[%emt 0:00:41] [#]} 30. Nb5 $1 {[%emt 0:03:59]} Rxc1 {[%emt 0:04:32]} 31. Qxc1 {[%emt 0:00:02]} Bxb5 {[%emt 0:01:09]} 32. axb5 {[%emt 0:00:01]} Nd6 {[%emt 0:00:07]} 33. Bf1 {[%emt 0:01:11]} Kf7 {[%emt 0:00:35]} 34. Qb1 {[%emt 0:01:41][%cal Og3g4]} Qc7 {[%emt 0:00:42]} 35. Bb4 {[%emt 0:01:55]} Nc4 {[%emt 0:02:03]} (35... h6 $11) 36. Qd1 {[%emt 0:01:11]} g6 {[%emt 0:01:17] Prevents Qh5.} 37. Qa4 {[%emt 0:08:45]} (37. e4 $16 {aiming for Qf3.} fxe4 38. Qg4) 37... Na5 {[%emt 0:00:46]} 38. Qa3 {[%emt 0:01:02]} Nd7 {[%emt 0:00:38]} 39. Bd6 {[%emt 0:00:53]} Qc2 {[%emt 0:01:50]} (39... Qc8 $14) 40. Bf4 $1 $16 {[%emt 0:00:36] And now Bg5 would win. A strong pair of Bishops.} Qc8 {[%emt 0:01:48]} 41. Qd6 {[%emt 0:10:10]} Qd8 {[%emt 0:04:35]} 42. h4 {[%emt 0:02:30] White has more active pieces.} (42. Bd3 $16) 42... Nb7 $1 $14 {[%emt 0:02:41]} 43. Qa3 {[%emt 0:00:10]} Na5 $1 {[%emt 0:01:34]} 44. Qc3 {[%emt 0:06:15]} Nf6 {[%emt 0:02:38]} 45. Bd3 {[%emt 0:01:23]} Ne8 {[%emt 0:02:00]} 46. Qa3 {[%emt 0:04:02]} Qe7 {[%emt 0:00:49]} 47. Qc1 {[%emt 0:00:04]} Qd7 {[%emt 0:04:46]} 48. Kg2 {[%emt 0:00:42][%cal Oh4h5]} h5 {[%emt 0:03:45]} 49. Qa3 {[%emt 0:04:12]} Qe7 {[%emt 0:02:50]} 50. Qb2 {[%emt 0:01:53]} Qd7 {[%emt 0:00:45]} 51. Qe2 {[%emt 0:01:36]} (51. Qb4 $14) 51... Qc8 {[%emt 0:01:21]} 52. Qe1 {[%emt 0:02:14]} Qd7 {[%emt 0:01:38]} (52... Nf6 $1 $11) 53. f3 {[%emt 0:00:30]} ({White should try} 53. Qc1 $14) 53... Qc8 {[%emt 0:02:26] [#]} 54. g4 {[%emt 0:00:33]} hxg4 $11 {[%emt 0:00:58]} 55. fxg4 {[%emt 0:00:07]} Nf6 {[%emt 0:00:27]} 56. gxf5 {[%emt 0:01:10]} gxf5 {[%emt 0:01:42]} 57. Qe2 {[%emt 0:01:27]} Ng4 {[%emt 0:02:07]} 58. Qc2 {[%emt 0:00:39]} Nc4 {[%emt 0:00:22]} 59. Kf3 {[%emt 0:00:28]} Kg6 {[%emt 0:01:51]} 60. Qa2 {[%emt 0:00:27]} (60. e4 {with more complications.} dxe4+ 61. Bxe4 e5 62. dxe5 Ngxe5+ 63. Bxe5 fxe4+ 64. Qxe4+ Qf5+ 65. Qxf5+ Kxf5 66. Bd4) 60... Na5 {[%emt 0:00:36] [#]} (60... e5 $11 {remains equal.} 61. dxe5 Ncxe5+ 62. Bxe5 Nxe5+ 63. Ke2 Qe6) 61. Qc2 {[%emt 0:00:18] Dancing on a razor blade.} ({White should play} 61. Qa3 $1 $16 {[%cal Ra3e7] Black must now prevent Qe7.} Qd8 62. Bg5) 61... Nc4 {[%emt 0:00:39]} 62. Kg3 {[%emt 0:00:51]} Nf6 {[%emt 0:00:51]} 63. Kh3 {[%emt 0:00:26]} Kf7 {[%emt 0:00:24]} 64. Qa2 {[%emt 0:00:22]} Na5 {[%emt 0:00:20]} 65. Qc2 {[%emt 0:00:04]} (65. Qg2 {looks sharper.} Nc4 66. Be2 Qh8 67. Qg5) 65... Nc4 {[%emt 0:00:03]} 66. Qa2 {[%emt 0:01:12]} Na5 {[%emt 0:00:17]} 67. Qg2 {[%emt 0:00:17]} Qc1 $2 {[%emt 0:01:15][%mdl 8192] [#]} (67... Qh8 $11 {and Black is okay.}) 68. Be2 $2 {[%emt 0:00:22]} (68. h5 $1 $18 {and the rest is easy. Threatening mate with Qg6+.} Nxh5 69. Bh6) 68... Ng4 $2 {[%emt 0:01:33][%mdl 8192]} 69. Bxg4 $18 {[%emt 0:00:21]} fxg4+ {[%emt 0:00:01]} 70. Kxg4 {[%emt 0:00:23][%mdl 4096] Endgame. Hoping for Kh5. KQB-KQN} ({Stronger than} 70. Qxg4 Qh1+ 71. Kg3 (71. Bh2 Qf1+ 72. Kg3 Qe1+ 73. Kg2 Qd2+ 74. Kh3 Qxe3+ 75. Qg3 Qxd4 $11) 71... Qg1+ 72. Kh3 (72. Kf3 Qd1+ 73. Kg3 Qg1+ 74. Kh3 Qh1+ 75. Bh2 Qf1+ 76. Kg3 Qe1+ 77. Kg2 Qd2+ 78. Kh1 Qe1+ 79. Bg1 Qf1 $11) 72... Qh1+ 73. Bh2 Qf1+ 74. Kg3 Qe1+ 75. Kg2 Qd2+ 76. Kh3 Qxe3+ 77. Bg3 Nc4 $11) 70... Nc4 $2 {[%emt 0:00:27]} (70... Qb1 $18 71. h5 Qf5+ 72. Kh4 Nc4) 71. Kh5 {[%emt 0:01:08]} Qb1 {[%emt 0:00:53]} 72. Kh6 {[%emt 0:00:30] White threatens Qg7+ and mate.} Qxb5 {[%emt 0:00:51]} 73. Qg7+ {[%emt 0:00:17]} Ke8 {[%emt 0:00:05]} 74. Qg8+ {[%emt 0:00:12]} Kd7 {[%emt 0:00:45]} 75. Qf7+ {[%emt 0:00:30]} Kd8 {[%emt 0:00:03]} 76. Qxe6 {[%emt 0:00:53]} (76. Qc7+ $142 Ke8 77. Bg5 Qb4 78. Kh7 Qb1+ 79. Kh8 (79. Kg7 Qg6+ 80. Kxg6 Ne5+ 81. dxe5 Kf8 82. Qf7#) 79... Qb4 80. Qd8+ Kf7 81. Qg8#) 76... Nd2 {[%emt 0:00:51]} 77. Qd6+ {[%emt 0:00:35] White mates.} Ke8 {[%emt 0:00:07]} 78. Bg5 {[%emt 0:00:35][%csl Gg5][%cal Rd6e7]} Qd7 {[%emt 0:00:27]} 79. Qe5+ {[%emt 0:00:20] Weighted Error Value: White=0.14 (very precise) /Black=0.14 (very precise) .  Loses game:     	---       	Black=2      Missed win:     	White=1     	---        Mistake:       	White=6     	Black=5      Inaccurate:     	White=2     	Black=5      OK:         	White=8     	Black=29     Best:        	White=4     	Black=2      Strong:       	White=1     	Black=3} 1-0